[Event "Late-Titled-Tuesday-Blitz-April-30-2024"]
[Site "Chess.com"]
[Date "2024.04.30"]
[Round "10"]
[White "AlexeiShirov"]
[Black "RuperezA"]
[Result "1-0"]
[WhiteElo "2835"]
[BlackElo "2640"]
[TimeControl "180+1"]
[EndTime "15:53:45 PDT"]
[Termination "AlexeiShirov won by resignation"]

1. e4 {[%clk 0:03:00.9]} 1... e6 {[%clk 0:03:00.9]} 2. d4 {[%clk 0:03:00.2]}
2... d5 {[%clk 0:03:01.8]} 3. e5 {[%clk 0:03:00.6]} 3... c5 {[%clk 0:03:01.6]}
4. c3 {[%clk 0:03:00.9]} 4... Nc6 {[%clk 0:03:02.5]} 5. Nf3 {[%clk 0:03:00.6]}
5... Qb6 {[%clk 0:03:02]} 6. a3 {[%clk 0:02:59.9]} 6... Nh6 {[%clk 0:03:00.3]}
7. b4 {[%clk 0:02:59.2]} 7... cxd4 {[%clk 0:03:01]} 8. Bxh6 {[%clk 0:02:59.3]}
8... gxh6 {[%clk 0:02:58.6]} 9. cxd4 {[%clk 0:02:59.5]} 9... Rg8 {[%clk
0:02:54.9]} 10. Nc3 {[%clk 0:02:57.8]} 10... Bd7 {[%clk 0:02:49.6]} 11. Na4
{[%clk 0:02:52.5]} 11... Qd8 {[%clk 0:02:48.4]} 12. Rc1 {[%clk 0:02:47.8]} 12...
Rc8 {[%clk 0:02:11.4]} 13. Nc5 {[%clk 0:02:44.4]} 13... Rc7 {[%clk 0:02:09.9]}
14. g3 {[%clk 0:02:37.7]} 14... Qc8 {[%clk 0:01:59]} 15. Bb5 {[%clk 0:02:27.3]}
15... Nxe5 {[%clk 0:01:11.5]} 16. Bxd7+ {[%clk 0:02:26.6]} 16... Nxd7 {[%clk
0:01:10.8]} 17. O-O {[%clk 0:02:27.2]} 17... b6 {[%clk 0:01:08.9]} 18. Nxd7
{[%clk 0:02:25.1]} 18... Kxd7 {[%clk 0:00:53.9]} 19. Qa4+ {[%clk 0:02:15.9]}
19... Ke7 {[%clk 0:00:53.3]} 20. Rxc7+ {[%clk 0:02:09.2]} 20... Qxc7 {[%clk
0:00:54.2]} 21. Ne5 {[%clk 0:02:07.3]} 21... Bg7 {[%clk 0:00:46.6]} 22. Nc6+
{[%clk 0:02:04.9]} 22... Kf6 {[%clk 0:00:46.7]} 23. Rc1 {[%clk 0:01:58.3]} 23...
Rc8 {[%clk 0:00:41.2]} 24. b5 {[%clk 0:01:56.8]} 24... Bf8 {[%clk 0:00:34.5]}
25. Rc3 {[%clk 0:01:42.3]} 25... Kg7 {[%clk 0:00:32.9]} 26. Rd3 {[%clk
0:01:32.6]} 26... a5 {[%clk 0:00:32.5]} 27. Qd1 {[%clk 0:01:32]} 27... Kh8
{[%clk 0:00:25.3]} 28. a4 {[%clk 0:01:30.6]} 28... Bg7 {[%clk 0:00:25.6]} 29.
Qg4 {[%clk 0:01:27.4]} 29... Qd6 {[%clk 0:00:23.6]} 30. Rf3 {[%clk 0:01:26.2]}
30... f5 {[%clk 0:00:19.1]} 31. Qh5 {[%clk 0:01:24.9]} 31... Rf8 {[%clk
0:00:17.2]} 32. Kg2 {[%clk 0:01:24.4]} 32... Qd7 {[%clk 0:00:17.1]} 33. Re3
{[%clk 0:01:21.3]} 33... Qd6 {[%clk 0:00:17.4]} 34. f4 {[%clk 0:01:19.8]} 34...
Qd7 {[%clk 0:00:17.8]} 35. Qe2 {[%clk 0:01:18.8]} 35... Rf6 {[%clk 0:00:17.4]}
36. Ne5 {[%clk 0:01:16.7]} 36... Qd6 {[%clk 0:00:17.9]} 37. Rc3 {[%clk 0:01:16]}
37... Rf8 {[%clk 0:00:16.2]} 38. Rc6 {[%clk 0:01:12.6]} 38... Qa3 {[%clk
0:00:16.7]} 39. Rxb6 {[%clk 0:01:09]} 39... Qxa4 {[%clk 0:00:16.4]} 40. Rxe6
{[%clk 0:01:07.1]} 40... Qxd4 {[%clk 0:00:17]} 41. Nd7 {[%clk 0:01:05]} 41...
Rg8 {[%clk 0:00:16.1]} 42. b6 {[%clk 0:01:04.5]} 42... a4 {[%clk 0:00:15.4]} 43.
b7 {[%clk 0:01:03.7]} 43... a3 {[%clk 0:00:10.4]} 44. Re8 {[%clk 0:01:01]} 44...
Qb2 {[%clk 0:00:08.5]} 45. Rxg8+ {[%clk 0:00:58.9]} 45... Kxg8 {[%clk
0:00:09.4]} 46. b8=Q+ {[%clk 0:00:58.1]} 46... Qxb8 {[%clk 0:00:09.6]} 1-0

[Event "Late-Titled-Tuesday-Blitz-April-30-2024"]
[Site "Chess.com"]
[Date "2024.04.30"]
[Round "10"]
[White "GlavkonVVS"]
[Black "Sinquefield"]
[Result "1-0"]
[WhiteElo "2692"]
[BlackElo "2522"]
[TimeControl "180+1"]
[EndTime "15:53:53 PDT"]
[Termination "GlavkonVVS won by resignation"]

1. c4 {[%clk 0:03:00.9]} 1... e5 {[%clk 0:02:57.3]} 2. Nc3 {[%clk 0:03:01.2]}
2... Nf6 {[%clk 0:02:57]} 3. g3 {[%clk 0:03:01.8]} 3... d6 {[%clk 0:02:57.6]} 4.
Bg2 {[%clk 0:03:02.2]} 4... Nbd7 {[%clk 0:02:58.2]} 5. Nf3 {[%clk 0:03:02]} 5...
Be7 {[%clk 0:02:58.6]} 6. d3 {[%clk 0:03:02.5]} 6... O-O {[%clk 0:02:59.3]} 7.
Rb1 {[%clk 0:03:02.8]} 7... c6 {[%clk 0:03:00]} 8. b4 {[%clk 0:03:03]} 8... d5
{[%clk 0:03:00.6]} 9. O-O {[%clk 0:02:57]} 9... Re8 {[%clk 0:02:59.5]} 10. e4
{[%clk 0:02:56.5]} 10... dxe4 {[%clk 0:02:50.6]} 11. dxe4 {[%clk 0:02:56.5]}
11... a5 {[%clk 0:02:49.5]} 12. a3 {[%clk 0:02:55.9]} 12... Qc7 {[%clk
0:02:49.2]} 13. c5 {[%clk 0:02:51.4]} 13... b6 {[%clk 0:02:40.5]} 14. cxb6
{[%clk 0:02:48.9]} 14... Qxb6 {[%clk 0:02:39.7]} 15. Be3 {[%clk 0:02:43.3]}
15... Qc7 {[%clk 0:02:09.7]} 16. Qc2 {[%clk 0:02:26]} 16... Ba6 {[%clk
0:02:01.3]} 17. Rfc1 {[%clk 0:02:23.9]} 17... axb4 {[%clk 0:01:57.1]} 18. axb4
{[%clk 0:02:22.8]} 18... Reb8 {[%clk 0:01:49.1]} 19. Nd5 {[%clk 0:02:13.8]}
19... Nxd5 {[%clk 0:01:37.7]} 20. exd5 {[%clk 0:02:13.9]} 20... Rxb4 {[%clk
0:01:25.8]} 21. Rxb4 {[%clk 0:02:13.4]} 21... Bxb4 {[%clk 0:01:26.7]} 22. dxc6
{[%clk 0:02:14]} 22... Nf6 {[%clk 0:01:23.6]} 23. Nxe5 {[%clk 0:01:52.9]} 23...
Qxe5 {[%clk 0:01:19.1]} 24. c7 {[%clk 0:01:52.8]} 24... Rf8 {[%clk 0:00:43.5]}
25. Qa4 {[%clk 0:01:46.8]} 25... Qa5 {[%clk 0:00:41.4]} 26. Ra1 {[%clk 0:01:35]}
26... Qxa4 {[%clk 0:00:32]} 27. Rxa4 {[%clk 0:01:34.4]} 27... Bd6 {[%clk
0:00:30.4]} 28. Rxa6 {[%clk 0:01:20.6]} 28... Bxc7 {[%clk 0:00:30.4]} 29. h3
{[%clk 0:01:16.3]} 29... h6 {[%clk 0:00:25.2]} 30. g4 {[%clk 0:01:16.5]} 30...
Rb8 {[%clk 0:00:19.9]} 31. Bf3 {[%clk 0:01:15.8]} 31... Be5 {[%clk 0:00:14.4]}
32. Kg2 {[%clk 0:01:14.3]} 32... Bc7 {[%clk 0:00:14.5]} 33. h4 {[%clk 0:01:10]}
33... Bd8 {[%clk 0:00:10.5]} 34. Rc6 {[%clk 0:01:08.1]} 34... Be7 {[%clk
0:00:10.5]} 35. g5 {[%clk 0:01:08]} 35... hxg5 {[%clk 0:00:10.3]} 36. hxg5
{[%clk 0:01:08.5]} 36... Nh7 {[%clk 0:00:10.9]} 37. g6 {[%clk 0:01:08.4]} 37...
fxg6 {[%clk 0:00:11.3]} 38. Bd5+ {[%clk 0:01:06.8]} 38... Kf8 {[%clk 0:00:10.3]}
39. Rxg6 {[%clk 0:01:07.4]} 39... Nf6 {[%clk 0:00:10.4]} 40. Bf3 {[%clk
0:01:07.3]} 40... Rb5 {[%clk 0:00:08.6]} 41. Rg3 {[%clk 0:01:06.2]} 41... Kf7
{[%clk 0:00:08.9]} 42. Rh3 {[%clk 0:01:06]} 42... Ra5 {[%clk 0:00:07.8]} 43. Rh1
{[%clk 0:01:05.7]} 43... Rb5 {[%clk 0:00:08.1]} 44. Rc1 {[%clk 0:01:05.5]} 44...
Nd5 {[%clk 0:00:08.1]} 45. Bd4 {[%clk 0:01:03.7]} 45... Bf6 {[%clk 0:00:07]} 46.
Bc5 {[%clk 0:01:01.7]} 46... Be7 {[%clk 0:00:06.8]} 47. Bxd5+ {[%clk 0:01:01.5]}
47... Ke8 {[%clk 0:00:05.5]} 48. Bc6+ {[%clk 0:01:01.3]} 1-0

[Event "Late-Titled-Tuesday-Blitz-April-30-2024"]
[Site "Chess.com"]
[Date "2024.04.30"]
[Round "10"]
[White "Inepton_Fermion"]
[Black "VirtualCoach"]
[Result "0-1"]
[WhiteElo "2418"]
[BlackElo "2089"]
[TimeControl "180+1"]
[EndTime "15:53:55 PDT"]
[Termination "VirtualCoach won by resignation"]

1. d4 {[%clk 0:03:00.9]} 1... Nf6 {[%clk 0:02:59.4]} 2. Nc3 {[%clk 0:03:01]}
2... d5 {[%clk 0:02:58.7]} 3. Bg5 {[%clk 0:03:00.7]} 3... e6 {[%clk 0:02:58.3]}
4. e4 {[%clk 0:03:00.5]} 4... dxe4 {[%clk 0:02:57.3]} 5. Nxe4 {[%clk 0:03:01.2]}
5... Be7 {[%clk 0:02:57.7]} 6. Bxf6 {[%clk 0:03:01.9]} 6... gxf6 {[%clk
0:02:58.2]} 7. Nf3 {[%clk 0:03:02.7]} 7... f5 {[%clk 0:02:58.8]} 8. Nc3 {[%clk
0:03:02.3]} 8... Nc6 {[%clk 0:02:59.1]} 9. d5 {[%clk 0:03:00.4]} 9... Nb4 {[%clk
0:02:55.8]} 10. Bc4 {[%clk 0:02:52]} 10... Bf6 {[%clk 0:02:50.8]} 11. O-O {[%clk
0:02:04.5]} 11... O-O {[%clk 0:02:47.4]} 12. dxe6 {[%clk 0:01:58.9]} 12... Bxe6
{[%clk 0:02:45.6]} 13. Qe2 {[%clk 0:01:55.7]} 13... Bxc4 {[%clk 0:02:41.6]} 14.
Qxc4 {[%clk 0:01:55.4]} 14... a5 {[%clk 0:02:27.6]} 15. Rfd1 {[%clk 0:01:46.7]}
15... Qe7 {[%clk 0:02:23.8]} 16. a3 {[%clk 0:01:45.7]} 16... Nc6 {[%clk
0:02:16.3]} 17. Nd5 {[%clk 0:01:45.2]} 17... Qd6 {[%clk 0:02:08.2]} 18. Nb6
{[%clk 0:01:42.5]} 18... Qe6 {[%clk 0:02:04.1]} 19. Qxe6 {[%clk 0:01:41.4]}
19... fxe6 {[%clk 0:02:03.7]} 20. Nxa8 {[%clk 0:01:42.1]} 20... Rxa8 {[%clk
0:02:03.3]} 21. c3 {[%clk 0:01:42.8]} 21... Kf8 {[%clk 0:01:54.7]} 22. Rd7
{[%clk 0:01:41]} 22... Be7 {[%clk 0:01:50.6]} 23. Rxc7 {[%clk 0:01:39.4]} 23...
Rb8 {[%clk 0:01:50]} 24. Rd1 {[%clk 0:01:38.1]} 24... Nd8 {[%clk 0:01:49.9]} 25.
Rdd7 {[%clk 0:01:35.1]} 25... Bf6 {[%clk 0:01:47.4]} 26. Rxh7 {[%clk 0:01:29.6]}
26... e5 {[%clk 0:01:46.7]} 27. Kf1 {[%clk 0:01:24.2]} 27... b5 {[%clk
0:01:44.8]} 28. h4 {[%clk 0:01:22.8]} 28... b4 {[%clk 0:01:44.1]} 29. cxb4
{[%clk 0:01:19.3]} 29... axb4 {[%clk 0:01:45]} 30. a4 {[%clk 0:01:19.9]} 30...
e4 {[%clk 0:01:44.6]} 31. Ng5 {[%clk 0:01:16.1]} 31... Bxb2 {[%clk 0:01:43.2]}
32. Nf7 {[%clk 0:00:58]} 32... Ne6 {[%clk 0:01:36.5]} 33. Rd7 {[%clk 0:00:35.7]}
33... b3 {[%clk 0:01:34.6]} 34. Nd6 {[%clk 0:00:28.7]} 34... Bg7 {[%clk
0:01:29]} 35. Nc4 {[%clk 0:00:18.8]} 35... Kg8 {[%clk 0:01:23.2]} 36. Rh5 {[%clk
0:00:17.1]} 36... Rb4 {[%clk 0:01:18.2]} 37. Nd2 {[%clk 0:00:12.3]} 37... b2
{[%clk 0:01:18.1]} 38. Rxf5 {[%clk 0:00:11.9]} 38... Rxa4 {[%clk 0:01:12.7]} 39.
Ke2 {[%clk 0:00:10.6]} 39... Ra1 {[%clk 0:01:11.3]} 40. Rb7 {[%clk 0:00:10.3]}
40... Bc3 {[%clk 0:01:10.3]} 41. Rfb5 {[%clk 0:00:09.2]} 41... Nd4+ {[%clk
0:01:08.3]} 42. Ke3 {[%clk 0:00:08.8]} 42... Nxb5 {[%clk 0:01:07.9]} 43. Rxb5
{[%clk 0:00:09.7]} 43... Bxd2+ {[%clk 0:01:08.1]} 44. Kxd2 {[%clk 0:00:08.5]}
44... b1=Q {[%clk 0:01:08.3]} 45. Rxb1 {[%clk 0:00:07.7]} 45... Rxb1 {[%clk
0:01:08.6]} 46. Ke3 {[%clk 0:00:08.6]} 46... Rf1 {[%clk 0:01:08]} 47. g4 {[%clk
0:00:03.6]} 47... Rg1 {[%clk 0:01:05.9]} 48. g5 {[%clk 0:00:02]} 48... Rg2
{[%clk 0:01:05.9]} 49. Kxe4 {[%clk 0:00:02.1]} 49... Rxf2 {[%clk 0:01:06.1]} 50.
Ke5 {[%clk 0:00:02.6]} 50... Kg7 {[%clk 0:01:05.6]} 0-1

[Event "Late-Titled-Tuesday-Blitz-April-30-2024"]
[Site "Chess.com"]
[Date "2024.04.30"]
[Round "10"]
[White "balack95"]
[Black "laskakid"]
[Result "0-1"]
[WhiteElo "2493"]
[BlackElo "2418"]
[TimeControl "180+1"]
[EndTime "15:53:59 PDT"]
[Termination "laskakid won by checkmate"]

1. d4 {[%clk 0:03:00.9]} 1... f5 {[%clk 0:02:59.1]} 2. Nc3 {[%clk 0:03:00.6]}
2... Nf6 {[%clk 0:02:58.7]} 3. Bg5 {[%clk 0:03:01.3]} 3... d5 {[%clk 0:02:58.5]}
4. e3 {[%clk 0:03:01.9]} 4... e6 {[%clk 0:02:55.1]} 5. Nf3 {[%clk 0:03:01.7]}
5... Nbd7 {[%clk 0:02:52.6]} 6. Bd3 {[%clk 0:03:02.1]} 6... c5 {[%clk
0:02:52.4]} 7. dxc5 {[%clk 0:03:01]} 7... Bxc5 {[%clk 0:02:46.8]} 8. O-O {[%clk
0:03:00]} 8... O-O {[%clk 0:02:46.4]} 9. a3 {[%clk 0:02:54]} 9... h6 {[%clk
0:02:34]} 10. Bh4 {[%clk 0:02:52.4]} 10... g5 {[%clk 0:02:27]} 11. Bg3 {[%clk
0:02:52.6]} 11... Ne4 {[%clk 0:02:25.6]} 12. Na4 {[%clk 0:02:28.5]} 12... Be7
{[%clk 0:02:16.7]} 13. c4 {[%clk 0:02:27.2]} 13... f4 {[%clk 0:02:09.7]} 14.
exf4 {[%clk 0:01:55.7]} 14... gxf4 {[%clk 0:02:07.8]} 15. Nd4 {[%clk 0:01:56.4]}
15... Ne5 {[%clk 0:01:48.4]} 16. Nc3 {[%clk 0:01:41.9]} 16... Nxd3 {[%clk
0:01:37.3]} 17. Qxd3 {[%clk 0:01:41.3]} 17... fxg3 {[%clk 0:01:34.9]} 18. Nxe4
{[%clk 0:01:41.4]} 18... dxe4 {[%clk 0:01:33.3]} 19. Qxe4 {[%clk 0:01:41.6]}
19... gxh2+ {[%clk 0:01:24.3]} 20. Kh1 {[%clk 0:01:40.1]} 20... Rf6 {[%clk
0:01:13.7]} 21. Rad1 {[%clk 0:01:36.9]} 21... Qf8 {[%clk 0:01:11.4]} 22. f4
{[%clk 0:01:27.8]} 22... a5 {[%clk 0:00:58.5]} 23. Rf3 {[%clk 0:01:23.3]} 23...
Ra6 {[%clk 0:00:54]} 24. Nb5 {[%clk 0:01:18.2]} 24... Rc6 {[%clk 0:00:34.7]} 25.
Rdd3 {[%clk 0:01:07.4]} 25... Rc5 {[%clk 0:00:17.8]} 26. b4 {[%clk 0:01:07]}
26... axb4 {[%clk 0:00:16.6]} 27. axb4 {[%clk 0:01:07.9]} 27... Rcf5 {[%clk
0:00:14.7]} 28. Rg3+ {[%clk 0:01:02.4]} 28... Kh8 {[%clk 0:00:14.5]} 29. Rd4
{[%clk 0:00:48.7]} 29... Rxf4 {[%clk 0:00:14.2]} 30. Qe5 {[%clk 0:00:47.8]}
30... Rxd4 {[%clk 0:00:11.7]} 31. Qxd4 {[%clk 0:00:48.7]} 31... Kh7 {[%clk
0:00:10.6]} 32. c5 {[%clk 0:00:48.1]} 32... Rf1+ {[%clk 0:00:09.4]} 33. Kxh2
{[%clk 0:00:48.7]} 33... Qf6 {[%clk 0:00:07.4]} 34. Qd3+ {[%clk 0:00:48.5]}
34... Kh8 {[%clk 0:00:06.6]} 35. Nd4 {[%clk 0:00:41.4]} 35... Qh4+ {[%clk
0:00:05.5]} 36. Rh3 {[%clk 0:00:41.8]} 36... Qf4+ {[%clk 0:00:05.6]} 37. Rg3
{[%clk 0:00:31.8]} 37... Bh4 {[%clk 0:00:05.5]} 38. Ne2 {[%clk 0:00:31.8]} 38...
Bxg3+ {[%clk 0:00:05]} 39. Nxg3 {[%clk 0:00:32.2]} 39... Qh4# {[%clk 0:00:05]}
0-1

[Event "Late-Titled-Tuesday-Blitz-April-30-2024"]
[Site "Chess.com"]
[Date "2024.04.30"]
[Round "10"]
[White "PawnEatingZombie"]
[Black "jactorres"]
[Result "1-0"]
[WhiteElo "2225"]
[BlackElo "2398"]
[TimeControl "180+1"]
[EndTime "15:54:01 PDT"]
[Termination "PawnEatingZombie won by resignation"]

1. e4 {[%clk 0:03:00.9]} 1... e5 {[%clk 0:02:59.8]} 2. Nf3 {[%clk 0:02:59.6]}
2... Nc6 {[%clk 0:03:00]} 3. Nc3 {[%clk 0:02:59.4]} 3... Nf6 {[%clk 0:02:59.9]}
4. Bb5 {[%clk 0:02:59]} 4... d6 {[%clk 0:02:36.3]} 5. O-O {[%clk 0:02:48.8]}
5... Bd7 {[%clk 0:02:33.8]} 6. Re1 {[%clk 0:02:46.6]} 6... Be7 {[%clk 0:02:34]}
7. Bf1 {[%clk 0:02:43.8]} 7... O-O {[%clk 0:02:28.6]} 8. h3 {[%clk 0:02:43.8]}
8... Re8 {[%clk 0:02:16.4]} 9. d4 {[%clk 0:02:43.5]} 9... Bf8 {[%clk 0:02:14.5]}
10. b3 {[%clk 0:02:32.3]} 10... g6 {[%clk 0:02:07.8]} 11. Bb2 {[%clk 0:02:32.2]}
11... Bg7 {[%clk 0:02:08.3]} 12. dxe5 {[%clk 0:01:57.8]} 12... Nxe5 {[%clk
0:02:00]} 13. Nxe5 {[%clk 0:01:57.5]} 13... dxe5 {[%clk 0:02:00.3]} 14. Nd5
{[%clk 0:01:55.7]} 14... c6 {[%clk 0:01:31.7]} 15. Nxf6+ {[%clk 0:01:54.8]}
15... Bxf6 {[%clk 0:01:31.6]} 16. Qf3 {[%clk 0:01:43.4]} 16... Qe7 {[%clk
0:01:26.7]} 17. a4 {[%clk 0:01:41.7]} 17... Bg7 {[%clk 0:01:16.9]} 18. Ba3
{[%clk 0:01:41.7]} 18... Qf6 {[%clk 0:01:16]} 19. Qe3 {[%clk 0:01:30.5]} 19...
Be6 {[%clk 0:00:46]} 20. Rad1 {[%clk 0:01:29]} 20... a6 {[%clk 0:00:37.6]} 21.
Qb6 {[%clk 0:01:23.5]} 21... Rab8 {[%clk 0:00:19.8]} 22. Rd3 {[%clk 0:01:18]}
22... Qg5 {[%clk 0:00:14.5]} 23. Red1 {[%clk 0:01:11.2]} 23... Bf6 {[%clk
0:00:04.2]} 24. Bd6 {[%clk 0:00:56.9]} 24... Rbc8 {[%clk 0:00:03]} 25. Qxb7
{[%clk 0:00:57.1]} 25... a5 {[%clk 0:00:03.3]} 26. Qb6 {[%clk 0:00:52.8]} 26...
Ra8 {[%clk 0:00:02.3]} 27. Qe3 {[%clk 0:00:49.9]} 27... Qxe3 {[%clk 0:00:00.9]}
28. Rxe3 {[%clk 0:00:49.9]} 28... Bg5 {[%clk 0:00:01.1]} 29. Red3 {[%clk
0:00:49.8]} 29... h5 {[%clk 0:00:01.6]} 30. Bc5 {[%clk 0:00:45.6]} 30... Kg7
{[%clk 0:00:01.1]} 31. Be3 {[%clk 0:00:35.1]} 31... Bf6 {[%clk 0:00:01.7]} 32.
Rc3 {[%clk 0:00:34.8]} 32... Rac8 {[%clk 0:00:01.2]} 33. Rd6 {[%clk 0:00:32.7]}
33... c5 {[%clk 0:00:01.3]} 34. Ra6 {[%clk 0:00:32.4]} 34... c4 {[%clk
0:00:01.2]} 35. Bxc4 {[%clk 0:00:29.5]} 35... Bxc4 {[%clk 0:00:00.7]} 36. Rxc4
{[%clk 0:00:30]} 36... Rxc4 {[%clk 0:00:00.8]} 37. bxc4 {[%clk 0:00:30.9]} 37...
Rc8 {[%clk 0:00:01.2]} 38. c5 {[%clk 0:00:30.3]} 38... Rc6 {[%clk 0:00:01.3]}
39. Rxc6 {[%clk 0:00:29.9]} 1-0

[Event "Late-Titled-Tuesday-Blitz-April-30-2024"]
[Site "Chess.com"]
[Date "2024.04.30"]
[Round "10"]
[White "Blampman"]
[Black "djano"]
[Result "1/2-1/2"]
[WhiteElo "2444"]
[BlackElo "2589"]
[TimeControl "180+1"]
[EndTime "15:54:06 PDT"]
[Termination "Game drawn by repetition"]

1. d4 {[%clk 0:02:59.5]} 1... Nf6 {[%clk 0:02:58.5]} 2. c4 {[%clk 0:02:59]} 2...
a6 {[%clk 0:02:59]} 3. Nc3 {[%clk 0:02:59]} 3... b5 {[%clk 0:02:58.8]} 4. cxb5
{[%clk 0:02:58.7]} 4... axb5 {[%clk 0:02:59.7]} 5. Nxb5 {[%clk 0:02:59.1]} 5...
e5 {[%clk 0:03:00.1]} 6. Nc3 {[%clk 0:02:44.3]} 6... exd4 {[%clk 0:02:58.4]} 7.
Qxd4 {[%clk 0:02:45.2]} 7... Nc6 {[%clk 0:02:58.8]} 8. Qd1 {[%clk 0:02:41.5]}
8... Bc5 {[%clk 0:02:56.6]} 9. Nf3 {[%clk 0:02:40.5]} 9... O-O {[%clk
0:02:55.2]} 10. e3 {[%clk 0:02:40]} 10... d5 {[%clk 0:02:51.4]} 11. Be2 {[%clk
0:02:39.6]} 11... d4 {[%clk 0:02:49.5]} 12. exd4 {[%clk 0:02:38.3]} 12... Nxd4
{[%clk 0:02:49.9]} 13. Nxd4 {[%clk 0:02:38.6]} 13... Bxd4 {[%clk 0:02:50.8]} 14.
O-O {[%clk 0:02:38.1]} 14... c5 {[%clk 0:02:47.4]} 15. Bf3 {[%clk 0:02:37.4]}
15... Rb8 {[%clk 0:02:47]} 16. Qc2 {[%clk 0:02:29.7]} 16... Ng4 {[%clk
0:02:43.6]} 17. Bf4 {[%clk 0:02:23.7]} 17... Ne5 {[%clk 0:02:36.5]} 18. Be4
{[%clk 0:02:23.5]} 18... Ba6 {[%clk 0:02:20.8]} 19. Bxh7+ {[%clk 0:02:18.2]}
19... Kh8 {[%clk 0:02:20.6]} 20. Rfd1 {[%clk 0:02:18.7]} 20... Ng4 {[%clk
0:01:46]} 21. Bg3 {[%clk 0:02:10.9]} 21... Rb6 {[%clk 0:01:29.3]} 22. Bf5 {[%clk
0:02:09.7]} 22... Qg5 {[%clk 0:01:22.4]} 23. a4 {[%clk 0:01:13.6]} 23... Rf6
{[%clk 0:01:06.7]} 24. Bxg4 {[%clk 0:01:11.1]} 24... Qxg4 {[%clk 0:01:07.6]} 25.
Nd5 {[%clk 0:00:59.5]} 25... Rg6 {[%clk 0:00:53.8]} 26. Ra3 {[%clk 0:00:54.7]}
26... f5 {[%clk 0:00:43.8]} 27. Nf4 {[%clk 0:00:53.6]} 27... Rh6 {[%clk
0:00:40.5]} 28. h3 {[%clk 0:00:29.6]} 28... Qg5 {[%clk 0:00:38.2]} 29. Ne2
{[%clk 0:00:26.8]} 29... f4 {[%clk 0:00:24.3]} 30. Nxf4 {[%clk 0:00:15.7]} 30...
Rxf4 {[%clk 0:00:22]} 31. Bxf4 {[%clk 0:00:16.4]} 31... Qxf4 {[%clk 0:00:22.8]}
32. Rf3 {[%clk 0:00:16.5]} 32... Qb8 {[%clk 0:00:18.7]} 33. Qf5 {[%clk
0:00:15.4]} 33... Qxb2 {[%clk 0:00:14.9]} 34. Qf8+ {[%clk 0:00:15.5]} 34... Kh7
{[%clk 0:00:15]} 35. Qf5+ {[%clk 0:00:16.1]} 35... Kh8 {[%clk 0:00:11.2]} 36.
Qf8+ {[%clk 0:00:14.9]} 36... Kh7 {[%clk 0:00:11.4]} 37. Qf5+ {[%clk 0:00:15.5]}
37... Kh8 {[%clk 0:00:08.7]} 1/2-1/2

[Event "Late-Titled-Tuesday-Blitz-April-30-2024"]
[Site "Chess.com"]
[Date "2024.04.30"]
[Round "10"]
[White "H3nriqueTV"]
[Black "Chessmatus"]
[Result "0-1"]
[WhiteElo "2419"]
[BlackElo "2566"]
[TimeControl "180+1"]
[EndTime "15:54:10 PDT"]
[Termination "Chessmatus won by resignation"]

1. e4 {[%clk 0:02:55.8]} 1... c5 {[%clk 0:03:00]} 2. Nf3 {[%clk 0:02:54]} 2...
d6 {[%clk 0:03:00.2]} 3. d4 {[%clk 0:02:54.3]} 3... cxd4 {[%clk 0:03:01]} 4.
Nxd4 {[%clk 0:02:55.2]} 4... Nf6 {[%clk 0:03:01.2]} 5. Nc3 {[%clk 0:02:55.7]}
5... a6 {[%clk 0:03:01.5]} 6. Bc4 {[%clk 0:02:54.5]} 6... e6 {[%clk 0:03:00.9]}
7. Bb3 {[%clk 0:02:53]} 7... Nbd7 {[%clk 0:02:59.3]} 8. O-O {[%clk 0:02:49.5]}
8... Nc5 {[%clk 0:02:57.8]} 9. Bg5 {[%clk 0:02:47.8]} 9... Be7 {[%clk
0:02:53.8]} 10. Re1 {[%clk 0:02:46.7]} 10... h6 {[%clk 0:02:51]} 11. Bh4 {[%clk
0:02:40.2]} 11... Nxb3 {[%clk 0:02:45.6]} 12. Nxb3 {[%clk 0:02:39.1]} 12... g5
{[%clk 0:02:40.3]} 13. Bg3 {[%clk 0:02:38.5]} 13... e5 {[%clk 0:02:40.9]} 14.
Nd5 {[%clk 0:02:23.4]} 14... Nxd5 {[%clk 0:02:32]} 15. Qxd5 {[%clk 0:02:24.3]}
15... Qc7 {[%clk 0:02:32.1]} 16. Rad1 {[%clk 0:02:18]} 16... Be6 {[%clk
0:02:30.7]} 17. Qd2 {[%clk 0:02:15.8]} 17... h5 {[%clk 0:02:29.5]} 18. h3 {[%clk
0:02:12.6]} 18... h4 {[%clk 0:02:28.7]} 19. Bh2 {[%clk 0:02:12.5]} 19... g4
{[%clk 0:02:28.6]} 20. hxg4 {[%clk 0:02:03.4]} 20... Bxg4 {[%clk 0:02:29.5]} 21.
f3 {[%clk 0:02:03.5]} 21... Be6 {[%clk 0:02:27.5]} 22. f4 {[%clk 0:02:04]} 22...
h3 {[%clk 0:02:13.6]} 23. fxe5 {[%clk 0:02:00]} 23... dxe5 {[%clk 0:02:11.9]}
24. Qe3 {[%clk 0:01:21.8]} 24... hxg2 {[%clk 0:02:00.2]} 25. Qg3 {[%clk
0:01:12.4]} 25... Rh5 {[%clk 0:01:07.3]} 26. Qg8+ {[%clk 0:00:42.3]} 26... Bf8
{[%clk 0:01:06.2]} 27. Re3 {[%clk 0:00:26.6]} 27... Qb6 {[%clk 0:00:58.8]} 28.
Rd3 {[%clk 0:00:21.4]} 28... Bc4 {[%clk 0:00:44.8]} 29. Rc3 {[%clk 0:00:17.3]}
29... O-O-O {[%clk 0:00:30.4]} 30. Rxc4+ {[%clk 0:00:16.7]} 30... Kb8 {[%clk
0:00:29.7]} 31. Rc3 {[%clk 0:00:15]} 31... Bh6 {[%clk 0:00:28.2]} 32. Qxd8+
{[%clk 0:00:14.7]} 32... Qxd8 {[%clk 0:00:27.3]} 33. Red3 {[%clk 0:00:15.2]}
33... Qh4 {[%clk 0:00:20.5]} 34. Rh3 {[%clk 0:00:13]} 34... Qe1+ {[%clk
0:00:18.3]} 35. Kxg2 {[%clk 0:00:12.9]} 35... Qe2+ {[%clk 0:00:18.6]} 36. Kh1
{[%clk 0:00:12.5]} 36... Qf1+ {[%clk 0:00:17.2]} 37. Bg1 {[%clk 0:00:12.5]}
37... Rxh3+ {[%clk 0:00:17.1]} 38. Rxh3 {[%clk 0:00:12.6]} 38... Qxh3+ {[%clk
0:00:17.7]} 39. Bh2 {[%clk 0:00:13.5]} 0-1